Workbook

Sheet Notes
B2: Post-COVID clinic Friends and Family Test (FFT) data - November 2022 | H2: Show data for:

Sheet Summary
B3: FFT | C3: Number of organisations submitting | D3: Total responses to date | E3: Responses | G3: Percentage Positive | I3: Percentage Negative
C4: 2022-11-01 | D4: 2022-11-01 | E4: 2022-11-01 | F4: 2022-10-27 | G4: 2022-11-01 | H4: 2022-10-27 | I4: 2022-11-01 | J4: 2022-10-27
B5: Post Covid Q1 | C5: 72 | D5: 9036 | E5: 1111 | F5: 807 | G5: 0.9441944194 | H5: 0.9293680297 | I5: 0.01890189019 | J5: 0.02230483271
B6: Post Covid Q2 | C6: 72 | D6: 6966 | E6: 728 | F6: 485 | G6: 0.9395604396 | H6: 0.9608247423 | I6: 0.06043956044 | J6: 0.03917525773
B7: Post Covid Q3 | C7: 72 | D7: 7037 | E7: 897 | F7: 478 | G7: 0.9843924192 | H7: 0.9958158996 | I7: 0.01560758082 | J7: 0.004184100418

Sheet ICB
A3: ICB Code | B3: ICB Name | C3: Question 1 | F3: Question 1 | L3: Question 2 | P3: Question 2 | S3: Question 3 | V3: Question 3
C4: Total Responses | D4: Percentage Positive | E4: Percentage Negative | F4: Breakdown of Responses | L4: Total Responses | M4: Total Eligible | N4: Percentage Positive | O4: Percentage Negative | P4: Breakdown of Responses | S4: Total Responses | T4: Percentage Positive | U4: Percentage Negative | V4: Breakdown of Responses
F5: Very Good | G5: Good | H5: Neither Good nor Poor | I5: Poor | J5: Very Poor | K5: Don't Know | P5: Yes definitely | Q5: Yes to some extent | R5: No | V5: Yes definitely | W5: Yes to some extent | X5: No
B6: England | C6: 1111 | D6: 0.9441944194 | E6: 0.01890189019 | F6: 896 | G6: 153 | H6: 32 | I6: 7 | J6: 14 | K6: 9 | L6: 728 | M6: 2616 | N6: 0.9395604396 | O6: 0.06043956044 | P6: 614 | Q6: 70 | R6: 44 | S6: 897 | T6: 0.9843924192 | U6: 0.01560758082 | V6: 865 | W6: 18 | X6: 14
B7: Selection (excluding suppressed data) | C7: =SUBTOTAL(9,C8:C61) -> 1111 | D7: =IFERROR((F7+G7)/C7, "-") -> 0.9261926193 | E7: =IFERROR((I7+J7)/C7, "-") -> 0.01800180018 | F7: =SUBTOTAL(9,F8:F61) -> 880 | G7: 149 | H7: 31 | I7: 6 | J7: 14 | K7: 9 | L7: 728 | M7: 2616 | N7: =IFERROR((P7+Q7)/L7, "-") -> 0.9134615385 | O7: =IFERROR(R7/M7, "-") -> 0.01567278287 | P7: 598 | Q7: 67 | R7: 41 | S7: =SUBTOTAL(9,S8:S61) -> 897 | T7: =IFERROR((V7+W7)/S7, "-") -> 0.9609810479 | U7: =IFERROR(X7/S7, "-") -> 0.01449275362 | V7: =SUBTOTAL(9,V8:V61) -> 845 | W7: 17 | X7: 13
A8: QE1 | B8: LANCASHIRE AND SOUTH CUMBRIA ICB | C8: 8 | D8: 1 | E8: 0 | F8: * | G8: * | H8: * | I8: * | J8: * | K8: * | L8: 8 | M8: 0 | N8: 1 | O8: 0 | P8: * | Q8: * | R8: * | S8: 8 | T8: 1 | U8: 0 | V8: * | W8: * | X8: *
A9: QF7 | B9: SOUTH YORKSHIRE ICB | C9: 56 | D9: 0.9642857143 | E9: 0.01785714286 | F9: 50 | G9: 4 | H9: 1 | I9: 0 | J9: 1 | K9: 0 | L9: 0 | M9: 0 | N9: NA | O9: NA | P9: 0 | Q9: 0 | R9: 0 | S9: 0 | T9: NA | U9: NA | V9: 0 | W9: 0 | X9: 0
A10: QGH | B10: HEREFORDSHIRE AND WORCESTERSHIRE ICB | C10: 0 | D10: NA | E10: NA | F10: 0 | G10: 0 | H10: 0 | I10: 0 | J10: 0 | K10: 0 | L10: 0 | M10: 0 | N10: NA | O10: NA | P10: 0 | Q10: 0 | R10: 0 | S10: 0 | T10: NA | U10: NA | V10: 0 | W10: 0 | X10: 0
A11: QH8 | B11: MID AND SOUTH ESSEX ICB | C11: 0 | D11: NA | E11: NA | F11: 0 | G11: 0 | H11: 0 | I11: 0 | J11: 0 | K11: 0 | L11: 0 | M11: 0 | N11: NA | O11: NA | P11: 0 | Q11: 0 | R11: 0 | S11: 0 | T11: NA | U11: NA | V11: 0 | W11: 0 | X11: 0
A12: QHG | B12: BEDFORDSHIRE, LUTON AND MILTON KEYNES ICB | C12: 46 | D12: 0.9782608696 | E12: 0.02173913043 | F12: 32 | G12: 13 | H12: 0 | I12: 0 | J12: 1 | K12: 0 | L12: 46 | M12: 139 | N12: 0.9782608696 | O12: 0.02173913043 | P12: 37 | Q12: 8 | R12: 1 | S12: 46 | T12: 1 | U12: 0 | V12: 44 | W12: 2 | X12: 0
A13: QHL | B13: BIRMINGHAM AND SOLIHULL ICB | C13: 53 | D13: 0.9622641509 | E13: 0.01886792453 | F13: 50 | G13: 1 | H13: 1 | I13: 0 | J13: 1 | K13: 0 | L13: 50 | M13: 0 | N13: 0.98 | O13: 0.02 | P13: 47 | Q13: 2 | R13: 1 | S13: 52 | T13: 0.9615384615 | U13: 0.03846153846 | V13: 50 | W13: 0 | X13: 2
A14: QHM | B14: NORTH EAST AND NORTH CUMBRIA ICB | C14: 52 | D14: 0.9807692308 | E14: 0 | F14: 45 | G14: 6 | H14: 1 | I14: 0 | J14: 0 | K14: 0 | L14: 47 | M14: 372 | N14: 1 | O14: 0 | P14: 42 | Q14: 5 | R14: 0 | S14: 47 | T14: 1 | U14: 0 | V14: 44 | W14: 3 | X14: 0
A15: QJ2 | B15: DERBY AND DERBYSHIRE ICB | C15: 0 | D15: NA | E15: NA | F15: 0 | G15: 0 | H15: 0 | I15: 0 | J15: 0 | K15: 0 | L15: 0 | M15: 0 | N15: NA | O15: NA | P15: 0 | Q15: 0 | R15: 0 | S15: 0 | T15: NA | U15: NA | V15: 0 | W15: 0 | X15: 0
A16: QJG | B16: SUFFOLK AND NORTH EAST ESSEX ICB | C16: 369 | D16: 0.9430894309 | E16: 0.0189701897 | F16: 302 | G16: 46 | H16: 10 | I16: 2 | J16: 5 | K16: 4 | L16: 202 | M16: 380 | N16: 0.8564356436 | O16: 0.1435643564 | P16: 162 | Q16: 11 | R16: 29 | S16: 369 | T16: 0.9837398374 | U16: 0.0162601626 | V16: 363 | W16: 0 | X16: 6
A17: QJK | B17: DEVON ICB | C17: 0 | D17: NA | E17: NA | F17: 0 | G17: 0 | H17: 0 | I17: 0 | J17: 0 | K17: 0 | L17: 0 | M17: 0 | N17: NA | O17: NA | P17: 0 | Q17: 0 | R17: 0 | S17: 0 | T17: NA | U17: NA | V17: 0 | W17: 0 | X17: 0
A18: QJM | B18: LINCOLNSHIRE ICB | C18: 22 | D18: 0.8636363636 | E18: 0.04545454545 | F18: 17 | G18: 2 | H18: 2 | I18: 0 | J18: 1 | K18: 0 | L18: 22 | M18: 242 | N18: 0.9545454545 | O18: 0.04545454545 | P18: 15 | Q18: 6 | R18: 1 | S18: 22 | T18: 0.9545454545 | U18: 0.04545454545 | V18: 15 | W18: 6 | X18: 1
A19: QK1 | B19: LEICESTER, LEICESTERSHIRE AND RUTLAND ICB | C19: 0 | D19: NA | E19: NA | F19: 0 | G19: 0 | H19: 0 | I19: 0 | J19: 0 | K19: 0 | L19: 0 | M19: 111 | N19: NA | O19: NA | P19: 0 | Q19: 0 | R19: 0 | S19: 0 | T19: NA | U19: NA | V19: 0 | W19: 0 | X19: 0
A20: QKK | B20: SOUTH EAST LONDON ICB | C20: 3 | D20: * | E20: * | F20: * | G20: * | H20: * | I20: * | J20: * | K20: * | L20: 3 | M20: 67 | N20: * | O20: * | P20: * | Q20: * | R20: * | S20: 3 | T20: * | U20: * | V20: * | W20: * | X20: *
A21: QKS | B21: KENT AND MEDWAY ICB | C21: 0 | D21: NA | E21: NA | F21: 0 | G21: 0 | H21: 0 | I21: 0 | J21: 0 | K21: 0 | L21: 0 | M21: 0 | N21: NA | O21: NA | P21: 0 | Q21: 0 | R21: 0 | S21: 0 | T21: NA | U21: NA | V21: 0 | W21: 0 | X21: 0
A22: QM7 | B22: HERTFORDSHIRE AND WEST ESSEX ICB | C22: 8 | D22: 1 | E22: 0 | F22: 6 | G22: 2 | H22: 0 | I22: 0 | J22: 0 | K22: 0 | L22: 8 | M22: 0 | N22: 1 | O22: 0 | P22: 6 | Q22: 2 | R22: 0 | S22: 8 | T22: 1 | U22: 0 | V22: 8 | W22: 0 | X22: 0
A23: QMF | B23: NORTH EAST LONDON ICB | C23: 94 | D23: 0.8829787234 | E23: 0.02127659574 | F23: 62 | G23: 21 | H23: 7 | I23: 1 | J23: 1 | K23: 2 | L23: 24 | M23: 118 | N23: 0.9166666667 | O23: 0.08333333333 | P23: 16 | Q23: 6 | R23: 2 | S23: 24 | T23: 0.9166666667 | U23: 0.08333333333 | V23: 21 | W23: 1 | X23: 2
A24: QMJ | B24: NORTH CENTRAL LONDON ICB | C24: 0 | D24: NA | E24: NA | F24: 0 | G24: 0 | H24: 0 | I24: 0 | J24: 0 | K24: 0 | L24: 0 | M24: 0 | N24: NA | O24: NA | P24: 0 | Q24: 0 | R24: 0 | S24: 0 | T24: NA | U24: NA | V24: 0 | W24: 0 | X24: 0
A25: QMM | B25: NORFOLK AND WAVENEY ICB | C25: 15 | D25: 0.9333333333 | E25: 0 | F25: 9 | G25: 5 | H25: 1 | I25: 0 | J25: 0 | K25: 0 | L25: 5 | M25: 0 | N25: 1 | O25: 0 | P25: 5 | Q25: 0 | R25: 0 | S25: 6 | T25: 1 | U25: 0 | V25: 6 | W25: 0 | X25: 0
A26: QNC | B26: STAFFORDSHIRE AND STOKE-ON-TRENT ICB | C26: 18 | D26: 0.9444444444 | E26: 0.05555555556 | F26: 15 | G26: 2 | H26: 0 | I26: 0 | J26: 1 | K26: 0 | L26: 18 | M26: 0 | N26: 0.9444444444 | O26: 0.05555555556 | P26: 14 | Q26: 3 | R26: 1 | S26: 18 | T26: 0.9444444444 | U26: 0.05555555556 | V26: 17 | W26: 0 | X26: 1
A27: QNQ | B27: FRIMLEY ICB | C27: 0 | D27: NA | E27: NA | F27: 0 | G27: 0 | H27: 0 | I27: 0 | J27: 0 | K27: 0 | L27: 0 | M27: 0 | N27: NA | O27: NA | P27: 0 | Q27: 0 | R27: 0 | S27: 0 | T27: NA | U27: NA | V27: 0 | W27: 0 | X27: 0
A28: QNX | B28: SUSSEX ICB | C28: 8 | D28: 1 | E28: 0 | F28: 5 | G28: 3 | H28: 0 | I28: 0 | J28: 0 | K28: 0 | L28: 7 | M28: 7 | N28: 1 | O28: 0 | P28: 7 | Q28: 0 | R28: 0 | S28: 7 | T28: 1 | U28: 0 | V28: 7 | W28: 0 | X28: 0
A29: QOC | B29: SHROPSHIRE, TELFORD AND WREKIN ICB | C29: 0 | D29: NA | E29: NA | F29: 0 | G29: 0 | H29: 0 | I29: 0 | J29: 0 | K29: 0 | L29: 0 | M29: 0 | N29: NA | O29: NA | P29: 0 | Q29: 0 | R29: 0 | S29: 0 | T29: NA | U29: NA | V29: 0 | W29: 0 | X29: 0
A30: QOP | B30: GREATER MANCHESTER ICB | C30: 9 | D30: 0.8888888889 | E30: 0 | F30: 5 | G30: 3 | H30: 0 | I30: 0 | J30: 0 | K30: 1 | L30: 4 | M30: 71 | N30: * | O30: * | P30: 3 | Q30: 1 | R30: 0 | S30: 4 | T30: * | U30: * | V30: 4 | W30: 0 | X30: 0
A31: QOQ | B31: HUMBER AND NORTH YORKSHIRE ICB | C31: 4 | D31: * | E31: * | F31: * | G31: * | H31: * | I31: * | J31: * | K31: * | L31: 4 | M31: 13 | N31: * | O31: * | P31: * | Q31: * | R31: * | S31: 4 | T31: * | U31: * | V31: * | W31: * | X31: *
A32: QOX | B32: BATH AND NORTH EAST SOMERSET, SWINDON AND WILTSHIRE ICB | C32: 17 | D32: 0.9411764706 | E32: 0.05882352941 | F32: 12 | G32: 4 | H32: 0 | I32: 1 | J32: 0 | K32: 0 | L32: 17 | M32: 17 | N32: 1 | O32: 0 | P32: 17 | Q32: 0 | R32: 0 | S32: 17 | T32: 1 | U32: 0 | V32: 17 | W32: 0 | X32: 0
A33: QPM | B33: NORTHAMPTONSHIRE ICB | C33: 24 | D33: 0.9166666667 | E33: 0.08333333333 | F33: 20 | G33: 2 | H33: 0 | I33: 0 | J33: 2 | K33: 0 | L33: 24 | M33: 24 | N33: 1 | O33: 0 | P33: 23 | Q33: 1 | R33: 0 | S33: 24 | T33: 1 | U33: 0 | V33: 24 | W33: 0 | X33: 0
A34: QR1 | B34: GLOUCESTERSHIRE ICB | C34: 38 | D34: 0.9473684211 | E34: 0 | F34: 34 | G34: 2 | H34: 1 | I34: 0 | J34: 0 | K34: 1 | L34: 37 | M34: 0 | N34: 0.972972973 | O34: 0.02702702703 | P34: 33 | Q34: 3 | R34: 1 | S34: 36 | T34: 1 | U34: 0 | V34: 36 | W34: 0 | X34: 0
A35: QRL | B35: HAMPSHIRE AND ISLE OF WIGHT ICB | C35: 17 | D35: 1 | E35: 0 | F35: 9 | G35: 8 | H35: 0 | I35: 0 | J35: 0 | K35: 0 | L35: 17 | M35: 844 | N35: 0.9411764706 | O35: 0.05882352941 | P35: 11 | Q35: 5 | R35: 1 | S35: 17 | T35: 1 | U35: 0 | V35: 17 | W35: 0 | X35: 0
A36: QRV | B36: NORTH WEST LONDON ICB | C36: 1 | D36: * | E36: * | F36: * | G36: * | H36: * | I36: * | J36: * | K36: * | L36: 1 | M36: 74 | N36: * | O36: * | P36: * | Q36: * | R36: * | S36: 1 | T36: * | U36: * | V36: * | W36: * | X36: *
A37: QSL | B37: SOMERSET ICB | C37: 0 | D37: NA | E37: NA | F37: 0 | G37: 0 | H37: 0 | I37: 0 | J37: 0 | K37: 0 | L37: 0 | M37: 0 | N37: NA | O37: NA | P37: 0 | Q37: 0 | R37: 0 | S37: 0 | T37: NA | U37: NA | V37: 0 | W37: 0 | X37: 0
A38: QT1 | B38: NOTTINGHAM AND NOTTINGHAMSHIRE ICB | C38: 3 | D38: * | E38: * | F38: * | G38: * | H38: * | I38: * | J38: * | K38: * | L38: 3 | M38: 20 | N38: * | O38: * | P38: * | Q38: * | R38: * | S38: 3 | T38: * | U38: * | V38: * | W38: * | X38: *
A39: QT6 | B39: CORNWALL AND THE ISLES OF SCILLY ICB | C39: 30 | D39: 1 | E39: 0 | F39: 25 | G39: 5 | H39: 0 | I39: 0 | J39: 0 | K39: 0 | L39: 28 | M39: 0 | N39: 1 | O39: 0 | P39: 27 | Q39: 1 | R39: 0 | S39: 28 | T39: 1 | U39: 0 | V39: 28 | W39: 0 | X39: 0
A40: QU9 | B40: BUCKINGHAMSHIRE, OXFORDSHIRE AND BERKSHIRE WEST ICB | C40: 3 | D40: * | E40: * | F40: * | G40: * | H40: * | I40: * | J40: * | K40: * | L40: 3 | M40: 40 | N40: * | O40: * | P40: * | Q40: * | R40: * | S40: 3 | T40: * | U40: * | V40: * | W40: * | X40: *
A41: QUA | B41: BLACK COUNTRY ICB | C41: 67 | D41: 0.9850746269 | E41: 0 | F41: 62 | G41: 4 | H41: 1 | I41: 0 | J41: 0 | K41: 0 | L41: 49 | M41: 0 | N41: 1 | O41: 0 | P41: 49 | Q41: 0 | R41: 0 | S41: 49 | T41: 1 | U41: 0 | V41: 49 | W41: 0 | X41: 0
A42: QUE | B42: CAMBRIDGESHIRE AND PETERBOROUGH ICB | C42: 23 | D42: 0.9565217391 | E42: 0 | F42: 16 | G42: 6 | H42: 1 | I42: 0 | J42: 0 | K42: 0 | L42: 23 | M42: 45 | N42: 1 | O42: 0 | P42: 16 | Q42: 7 | R42: 0 | S42: 23 | T42: 1 | U42: 0 | V42: 20 | W42: 3 | X42: 0
A43: QUY | B43: BRISTOL, NORTH SOMERSET AND SOUTH GLOUCESTERSHIRE ICB | C43: 0 | D43: NA | E43: NA | F43: 0 | G43: 0 | H43: 0 | I43: 0 | J43: 0 | K43: 0 | L43: 0 | M43: 0 | N43: NA | O43: NA | P43: 0 | Q43: 0 | R43: 0 | S43: 0 | T43: NA | U43: NA | V43: 0 | W43: 0 | X43: 0
A44: QVV | B44: DORSET ICB | C44: 10 | D44: 0.2 | E44: 0.2 | F44: 1 | G44: 1 | H44: 5 | I44: 1 | J44: 1 | K44: 1 | L44: 10 | M44: 0 | N44: 0.6 | O44: 0.4 | P44: 1 | Q44: 5 | R44: 4 | S44: 10 | T44: 0.9 | U44: 0.1 | V44: 7 | W44: 2 | X44: 1
A45: QWE | B45: SOUTH WEST LONDON ICB | C45: 25 | D45: 0.96 | E45: 0.04 | F45: 20 | G45: 4 | H45: 0 | I45: 1 | J45: 0 | K45: 0 | L45: 24 | M45: 0 | N45: 1 | O45: 0 | P45: 23 | Q45: 1 | R45: 0 | S45: 24 | T45: 1 | U45: 0 | V45: 24 | W45: 0 | X45: 0
A46: QWO | B46: WEST YORKSHIRE ICB | C46: 26 | D46: 1 | E46: 0 | F46: 26 | G46: 0 | H46: 0 | I46: 0 | J46: 0 | K46: 0 | L46: 26 | M46: 0 | N46: 1 | O46: 0 | P46: 26 | Q46: 0 | R46: 0 | S46: 26 | T46: 1 | U46: 0 | V46: 26 | W46: 0 | X46: 0
A47: QWU | B47: COVENTRY AND WARWICKSHIRE ICB | C47: 15 | D47: 1 | E47: 0 | F47: 13 | G47: 2 | H47: 0 | I47: 0 | J47: 0 | K47: 0 | L47: 18 | M47: 22 | N47: 1 | O47: 0 | P47: 18 | Q47: 0 | R47: 0 | S47: 18 | T47: 1 | U47: 0 | V47: 18 | W47: 0 | X47: 0
A48: QXU | B48: SURREY HEARTLANDS ICB | C48: 0 | D48: NA | E48: NA | F48: 0 | G48: 0 | H48: 0 | I48: 0 | J48: 0 | K48: 0 | L48: 0 | M48: 10 | N48: NA | O48: NA | P48: 0 | Q48: 0 | R48: 0 | S48: 0 | T48: NA | U48: NA | V48: 0 | W48: 0 | X48: 0
A49: QYG | B49: CHESHIRE AND MERSEYSIDE ICB | C49: 47 | D49: 1 | E49: 0 | F49: 44 | G49: 3 | H49: 0 | I49: 0 | J49: 0 | K49: 0 | L49: 0 | M49: 0 | N49: NA | O49: NA | P49: 0 | Q49: 0 | R49: 0 | S49: 0 | T49: NA | U49: NA | V49: 0 | W49: 0 | X49: 0

Sheet Organisations
A3: ICB Code | B3: Trust Code | C3: Trust Name | D3: Question 1 | G3: Question 1 | M3: Question 2 | Q3: Question 2 | T3: Question 3 | W3: Question 3 | Z3: Mode of Collection - Question 1
D4: Total Responses | E4: Percentage Positive | F4: Percentage Negative | G4: Breakdown of Responses | M4: Total Responses | N4: Total Eligible | O4: Percentage Positive | P4: Percentage Negative | Q4: Breakdown of Responses | T4: Total Responses | U4: Percentage Positive | V4: Percentage Negative | W4: Breakdown of Responses
G5: Very Good | H5: Good | I5: Neither Good nor Poor | J5: Poor | K5: Very Poor | L5: Don't Know | Q5: Yes definitely | R5: Yes to some extent | S5: No | W5: Yes definitely | X5: Yes to some extent | Y5: No | Z5: SMS | AA5: Smartphone | AB5: Smartphone After | AC5: Paper | AD5: Paper After | AE5: Telephone | AF5: Online | AG5: Other
C6: England | D6: 1111 | E6: 0.9441944194 | F6: 0.01890189019 | G6: 896 | H6: 153 | I6: 32 | J6: 7 | K6: 14 | L6: 9 | M6: 728 | N6: 2616 | O6: 0.9395604396 | P6: 0.06043956044 | Q6: 614 | R6: 70 | S6: 44 | T6: 897 | U6: 0.9843924192 | V6: 0.01560758082 | W6: 865 | X6: 18 | Y6: 14 | Z6: 31 | AA6: 32 | AB6: 8 | AC6: 184 | AD6: 46 | AE6: 40 | AF6: 770 | AG6: 0
C7: Selection (excluding suppressed data) | D7: =SUBTOTAL(9,D8:D886) -> 1111 | E7: =IFERROR((G7+H7)/SUM(G7:L7), "-") -> 0.9446185998 | F7: =IFERROR((J7+K7)/SUM(G7:L7), "-") -> 0.01985370951 | G7: =SUBTOTAL(9,G8:G886) -> 782 | H7: 122 | I7: 26 | J7: 6 | K7: 13 | L7: 8 | M7: 728 | N7: 2616 | O7: =IFERROR((Q7+R7)/SUM(Q7:S7), "-") -> 0.9391575663 | P7: =IFERROR(S7/SUM(Q7:S7), "-") -> 0.0608424337 | Q7: =SUBTOTAL(9,Q8:Q886) -> 552 | R7: =SUBTOTAL(9,R8:R886) -> 50 | S7: =SUBTOTAL(9,S8:S886) -> 39 | T7: =SUBTOTAL(9,T8:T886) -> 897 | U7: =IFERROR((W7+X7)/SUM(W7:Y7), "-") -> 0.9873271889 | V7: =IFERROR(Y7/SUM(W7:Y7), "-") -> 0.01267281106 | W7: =SUBTOTAL(9,W8:W886) -> 841 | X7: 16 | Y7: 11 | Z7: 18 | AA7: 11 | AB7: 8 | AC7: 141 | AD7: 45 | AE7: 40 | AF7: 694 | AG7: 0
A8: QE1 | B8: RW5 | C8: LANCASHIRE & SOUTH CUMBRIA NHS FOUNDATION TRUST | D8: 8 | E8: 1 | F8: 0 | G8: * | H8: * | I8: * | J8: * | K8: * | L8: * | M8: 8 | N8: 0 | O8: 1 | P8: 0 | Q8: * | R8: * | S8: * | T8: 8 | U8: 1 | V8: 0 | W8: 8 | X8: 0 | Y8: 0 | Z8: * | AA8: * | AB8: * | AC8: * | AD8: * | AE8: * | AF8: * | AG8: *
A9: QF7 | B9: RXE | C9: ROTHERHAM DONCASTER AND SOUTH HUMBER NHS FOUNDATION TRUST | D9: 1 | E9: * | F9: * | G9: * | H9: * | I9: * | J9: * | K9: * | L9: * | M9: 0 | N9: 0 | O9: NA | P9: NA | Q9: 0 | R9: 0 | S9: 0 | T9: 0 | U9: NA | V9: NA | W9: 0 | X9: 0 | Y9: 0 | Z9: * | AA9: * | AB9: * | AC9: * | AD9: * | AE9: * | AF9: * | AG9: *
A10: QF7 | B10: RHQ | C10: SHEFFIELD TEACHING HOSPITALS NHS FOUNDATION TRUST | D10: 0 | E10: NA | F10: NA | G10: 0 | H10: 0 | I10: 0 | J10: 0 | K10: 0 | L10: 0 | M10: 0 | N10: 0 | O10: NA | P10: NA | Q10: 0 | R10: 0 | S10: 0 | T10: 0 | U10: NA | V10: NA | W10: 0 | X10: 0 | Y10: 0 | Z10: 0 | AA10: 0 | AB10: 0 | AC10: 0 | AD10: 0 | AE10: 0 | AF10: 0 | AG10: 0
A11: QF7 | B11: RFR | C11: THE ROTHERHAM NHS FOUNDATION TRUST | D11: 55 | E11: 0.9818181818 | F11: 0 | G11: * | H11: * | I11: * | J11: * | K11: * | L11: * | M11: 0 | N11: 0 | O11: NA | P11: NA | Q11: 0 | R11: 0 | S11: 0 | T11: 0 | U11: NA | V11: NA | W11: 0 | X11: 0 | Y11: 0 | Z11: * | AA11: * | AB11: * | AC11: * | AD11: * | AE11: * | AF11: * | AG11: *
A12: QHG | B12: RD8 | C12: MILTON KEYNES UNIVERSITY HOSPITAL NHS FOUNDATION TRUST | D12: 46 | E12: 0.9782608696 | F12: 0.02173913043 | G12: 32 | H12: 13 | I12: 0 | J12: 0 | K12: 1 | L12: 0 | M12: 46 | N12: 139 | O12: 0.9782608696 | P12: 0.02173913043 | Q12: 37 | R12: 8 | S12: 1 | T12: 46 | U12: 1 | V12: 0 | W12: 44 | X12: 2 | Y12: 0 | Z12: 0 | AA12: 0 | AB12: 0 | AC12: 0 | AD12: 0 | AE12: 0 | AF12: 46 | AG12: 0
A13: QHL | B13: RYW | C13: BIRMINGHAM COMMUNITY HEALTHCARE NHS FOUNDATION TRUST | D13: 53 | E13: 0.9622641509 | F13: 0.01886792453 | G13: 50 | H13: 1 | I13: 1 | J13: 0 | K13: 1 | L13: 0 | M13: 50 | N13: 0 | O13: 0.98 | P13: 0.02 | Q13: 47 | R13: 2 | S13: 1 | T13: 52 | U13: 0.9615384615 | V13: 0.03846153846 | W13: 50 | X13: 0 | Y13: 2 | Z13: 0 | AA13: 0 | AB13: 0 | AC13: 20 | AD13: 0 | AE13: 0 | AF13: 33 | AG13: 0
A14: QHM | B14: RXP | C14: COUNTY DURHAM AND DARLINGTON NHS FOUNDATION TRUST | D14: 0 | E14: NA | F14: NA | G14: 0 | H14: 0 | I14: 0 | J14: 0 | K14: 0 | L14: 0 | M14: 0 | N14: 0 | O14: NA | P14: NA | Q14: 0 | R14: 0 | S14: 0 | T14: 0 | U14: NA | V14: NA | W14: 0 | X14: 0 | Y14: 0 | Z14: 0 | AA14: 0 | AB14: 0 | AC14: 0 | AD14: 0 | AE14: 0 | AF14: 0 | AG14: 0
A15: QHM | B15: RR7 | C15: GATESHEAD HEALTH NHS FOUNDATION TRUST | D15: 0 | E15: NA | F15: NA | G15: 0 | H15: 0 | I15: 0 | J15: 0 | K15: 0 | L15: 0 | M15: 0 | N15: 4 | O15: NA | P15: NA | Q15: 0 | R15: 0 | S15: 0 | T15: 0 | U15: NA | V15: NA | W15: 0 | X15: 0 | Y15: 0 | Z15: 0 | AA15: 0 | AB15: 0 | AC15: 0 | AD15: 0 | AE15: 0 | AF15: 0 | AG15: 0
A16: QHM | B16: RNN | C16: NORTH CUMBRIA INTEGRATED CARE NHS FOUNDATION TRUST | D16: 3 | E16: * | F16: * | G16: * | H16: * | I16: * | J16: * | K16: * | L16: * | M16: 3 | N16: 14 | O16: * | P16: * | Q16: * | R16: * | S16: * | T16: 3 | U16: * | V16: * | W16: * | X16: * | Y16: * | Z16: * | AA16: * | AB16: * | AC16: * | AD16: * | AE16: * | AF16: * | AG16: *
A17: QHM | B17: RVW | C17: NORTH TEES AND HARTLEPOOL NHS FOUNDATION TRUST | D17: 4 | E17: * | F17: * | G17: * | H17: * | I17: * | J17: * | K17: * | L17: * | M17: 0 | N17: 262 | O17: NA | P17: NA | Q17: 0 | R17: 0 | S17: 0 | T17: 0 | U17: NA | V17: NA | W17: 0 | X17: 0 | Y17: 0 | Z17: * | AA17: * | AB17: * | AC17: * | AD17: * | AE17: * | AF17: * | AG17: *
A18: QHM | B18: RTF | C18: NORTHUMBRIA HEALTHCARE NHS FOUNDATION TRUST | D18: 10 | E18: 1 | F18: 0 | G18: 9 | H18: 1 | I18: 0 | J18: 0 | K18: 0 | L18: 0 | M18: 9 | N18: 54 | O18: 1 | P18: 0 | Q18: 8 | R18: 1 | S18: 0 | T18: 9 | U18: 1 | V18: 0 | W18: 7 | X18: 2 | Y18: 0 | Z18: 10 | AA18: 0 | AB18: 0 | AC18: 0 | AD18: 0 | AE18: 0 | AF18: 0 | AG18: 0
A19: QHM | B19: RTR | C19: SOUTH TEES HOSPITALS NHS FOUNDATION TRUST | D19: 1 | E19: * | F19: * | G19: * | H19: * | I19: * | J19: * | K19: * | L19: * | M19: 1 | N19: 0 | O19: * | P19: * | Q19: * | R19: * | S19: * | T19: 1 | U19: * | V19: * | W19: * | X19: * | Y19: * | Z19: * | AA19: * | AB19: * | AC19: * | AD19: * | AE19: * | AF19: * | AG19: *
A20: QHM | B20: R0B | C20: SOUTH TYNESIDE AND SUNDERLAND NHS FOUNDATION TRUST | D20: 3 | E20: * | F20: * | G20: * | H20: * | I20: * | J20: * | K20: * | L20: * | M20: 3 | N20: 0 | O20: * | P20: * | Q20: * | R20: * | S20: * | T20: 3 | U20: * | V20: * | W20: * | X20: * | Y20: * | Z20: * | AA20: * | AB20: * | AC20: * | AD20: * | AE20: * | AF20: * | AG20: *
A21: QHM | B21: RTD | C21: THE NEWCASTLE UPON TYNE HOSPITALS NHS FOUNDATION TRUST | D21: 31 | E21: 1 | F21: 0 | G21: 29 | H21: 2 | I21: 0 | J21: 0 | K21: 0 | L21: 0 | M21: 31 | N21: 38 | O21: 1 | P21: 0 | Q21: 30 | R21: 1 | S21: 0 | T21: 31 | U21: 1 | V21: 0 | W21: 31 | X21: 0 | Y21: 0 | Z21: 0 | AA21: 0 | AB21: 0 | AC21: 31 | AD21: 0 | AE21: 0 | AF21: 0 | AG21: 0
A22: QJ2 | B22: RY8 | C22: DERBYSHIRE COMMUNITY HEALTH SERVICES NHS FOUNDATION TRUST | D22: 0 | E22: NA | F22: NA | G22: 0 | H22: 0 | I22: 0 | J22: 0 | K22: 0 | L22: 0 | M22: 0 | N22: 0 | O22: NA | P22: NA | Q22: 0 | R22: 0 | S22: 0 | T22: 0 | U22: NA | V22: NA | W22: 0 | X22: 0 | Y22: 0 | Z22: 0 | AA22: 0 | AB22: 0 | AC22: 0 | AD22: 0 | AE22: 0 | AF22: 0 | AG22: 0
A23: QJG | B23: RDE | C23: EAST SUFFOLK AND NORTH ESSEX NHS FOUNDATION TRUST | D23: 36 | E23: 0.8888888889 | F23: 0.02777777778 | G23: 18 | H23: 14 | I23: 2 | J23: 0 | K23: 1 | L23: 1 | M23: 36 | N23: 47 | O23: 0.9166666667 | P23: 0.08333333333 | Q23: 22 | R23: 11 | S23: 3 | T23: 36 | U23: 0.9444444444 | V23: 0.05555555556 | W23: 34 | X23: 0 | Y23: 2 | Z23: 0 | AA23: 0 | AB23: 0 | AC23: 0 | AD23: 0 | AE23: 0 | AF23: 36 | AG23: 0
A24: QJG | B24: NQA | C24: PROVIDE | D24: 333 | E24: 0.9489489489 | F24: 0.01801801802 | G24: 284 | H24: 32 | I24: 8 | J24: 2 | K24: 4 | L24: 3 | M24: 166 | N24: 333 | O24: 0.843373494 | P24: 0.156626506 | Q24: 140 | R24: 0 | S24: 26 | T24: 333 | U24: 0.987987988 | V24: 0.01201201201 | W24: 329 | X24: 0 | Y24: 4 | Z24: 0 | AA24: 0 | AB24: 0 | AC24: 0 | AD24: 0 | AE24: 0 | AF24: 333 | AG24: 0
A25: QJK | B25: NR5 | C25: LIVEWELL SOUTHWEST | D25: 0 | E25: NA | F25: NA | G25: 0 | H25: 0 | I25: 0 | J25: 0 | K25: 0 | L25: 0 | M25: 0 | N25: 0 | O25: NA | P25: NA | Q25: 0 | R25: 0 | S25: 0 | T25: 0 | U25: NA | V25: NA | W25: 0 | X25: 0 | Y25: 0 | Z25: 0 | AA25: 0 | AB25: 0 | AC25: 0 | AD25: 0 | AE25: 0 | AF25: 0 | AG25: 0
A26: QJM | B26: RY5 | C26: LINCOLNSHIRE COMMUNITY HEALTH SERVICES NHS TRUST | D26: 22 | E26: 0.8636363636 | F26: 0.04545454545 | G26: 17 | H26: 2 | I26: 2 | J26: 0 | K26: 1 | L26: 0 | M26: 22 | N26: 242 | O26: 0.9545454545 | P26: 0.04545454545 | Q26: 15 | R26: 6 | S26: 1 | T26: 22 | U26: 0.9545454545 | V26: 0.04545454545 | W26: 15 | X26: 6 | Y26: 1 | Z26: 0 | AA26: 0 | AB26: 0 | AC26: 0 | AD26: 0 | AE26: 22 | AF26: 0 | AG26: 0
A27: QK1 | B27: RWE | C27: UNIVERSITY HOSPITALS OF LEICESTER NHS TRUST | D27: 0 | E27: NA | F27: NA | G27: 0 | H27: 0 | I27: 0 | J27: 0 | K27: 0 | L27: 0 | M27: 0 | N27: 111 | O27: NA | P27: NA | Q27: 0 | R27: 0 | S27: 0 | T27: 0 | U27: NA | V27: NA | W27: 0 | X27: 0 | Y27: 0 | Z27: 0 | AA27: 0 | AB27: 0 | AC27: 0 | AD27: 0 | AE27: 0 | AF27: 0 | AG27: 0
A28: QKK | B28: RJ1 | C28: GUY'S AND ST THOMAS' NHS FOUNDATION TRUST | D28: 2 | E28: * | F28: * | G28: * | H28: * | I28: * | J28: * | K28: * | L28: * | M28: 2 | N28: 67 | O28: * | P28: * | Q28: * | R28: * | S28: * | T28: 2 | U28: * | V28: * | W28: * | X28: * | Y28: * | Z28: * | AA28: * | AB28: * | AC28: * | AD28: * | AE28: * | AF28: * | AG28: *
A29: QKK | B29: RJZ | C29: KING'S COLLEGE HOSPITAL NHS FOUNDATION TRUST | D29: 1 | E29: * | F29: * | G29: * | H29: * | I29: * | J29: * | K29: * | L29: * | M29: 1 | N29: 0 | O29: * | P29: * | Q29: * | R29: * | S29: * | T29: 1 | U29: * | V29: * | W29: * | X29: * | Y29: * | Z29: * | AA29: * | AB29: * | AC29: * | AD29: * | AE29: * | AF29: * | AG29: *
A30: QM7 | B30: RY4 | C30: HERTFORDSHIRE COMMUNITY NHS TRUST | D30: 8 | E30: 1 | F30: 0 | G30: 6 | H30: 2 | I30: 0 | J30: 0 | K30: 0 | L30: 0 | M30: 8 | N30: 0 | O30: 1 | P30: 0 | Q30: 6 | R30: 2 | S30: 0 | T30: 8 | U30: 1 | V30: 0 | W30: 8 | X30: 0 | Y30: 0 | Z30: 0 | AA30: 0 | AB30: 8 | AC30: 0 | AD30: 0 | AE30: 0 | AF30: 0 | AG30: 0
A31: QMF | B31: RF4 | C31: BARKING, HAVERING AND REDBRIDGE UNIVERSITY HOSPITALS NHS TRUST | D31: 69 | E31: 0.8695652174 | F31: 0.02898550725 | G31: 47 | H31: 13 | I31: 5 | J31: 1 | K31: 1 | L31: 2 | M31: 2 | N31: 0 | O31: * | P31: * | Q31: * | R31: * | S31: * | T31: 2 | U31: * | V31: * | W31: * | X31: * | Y31: * | Z31: 0 | AA31: 0 | AB31: 0 | AC31: 0 | AD31: 0 | AE31: 0 | AF31: 69 | AG31: 0
A32: QMF | B32: RWK | C32: EAST LONDON NHS FOUNDATION TRUST | D32: 0 | E32: NA | F32: NA | G32: 0 | H32: 0 | I32: 0 | J32: 0 | K32: 0 | L32: 0 | M32: 0 | N32: 118 | O32: NA | P32: NA | Q32: 0 | R32: 0 | S32: 0 | T32: 0 | U32: NA | V32: NA | W32: 0 | X32: 0 | Y32: 0 | Z32: 0 | AA32: 0 | AB32: 0 | AC32: 0 | AD32: 0 | AE32: 0 | AF32: 0 | AG32: 0
A33: QMF | B33: RQX | C33: HOMERTON HEALTHCARE NHS FOUNDATION TRUST | D33: 22 | E33: 0.9090909091 | F33: 0 | G33: * | H33: * | I33: * | J33: * | K33: * | L33: * | M33: 22 | N33: 0 | O33: 1 | P33: 0 | Q33: * | R33: * | S33: * | T33: 22 | U33: 1 | V33: 0 | W33: 21 | X33: 1 | Y33: 0 | Z33: * | AA33: * | AB33: * | AC33: * | AD33: * | AE33: * | AF33: * | AG33: *
A34: QMF | B34: Y05455 | C34: NELFT OOH | D34: 3 | E34: * | F34: * | G34: * | H34: * | I34: * | J34: * | K34: * | L34: * | M34: 0 | N34: 0 | O34: NA | P34: NA | Q34: 0 | R34: 0 | S34: 0 | T34: 0 | U34: NA | V34: NA | W34: 0 | X34: 0 | Y34: 0 | Z34: * | AA34: * | AB34: * | AC34: * | AD34: * | AE34: * | AF34: * | AG34: *
A35: QMM | B35: RY3 | C35: NORFOLK COMMUNITY HEALTH AND CARE NHS TRUST | D35: 15 | E35: 0.9333333333 | F35: 0 | G35: 9 | H35: 5 | I35: 1 | J35: 0 | K35: 0 | L35: 0 | M35: 5 | N35: 0 | O35: 1 | P35: 0 | Q35: 5 | R35: 0 | S35: 0 | T35: 6 | U35: 1 | V35: 0 | W35: 6 | X35: 0 | Y35: 0 | Z35: 0 | AA35: 0 | AB35: 0 | AC35: 0 | AD35: 0 | AE35: 0 | AF35: 15 | AG35: 0
A36: QNC | B36: RRE | C36: MIDLANDS PARTNERSHIP NHS FOUNDATION TRUST | D36: 18 | E36: 0.9444444444 | F36: 0.05555555556 | G36: 15 | H36: 2 | I36: 0 | J36: 0 | K36: 1 | L36: 0 | M36: 18 | N36: 0 | O36: 0.9444444444 | P36: 0.05555555556 | Q36: 14 | R36: 3 | S36: 1 | T36: 18 | U36: 0.9444444444 | V36: 0.05555555556 | W36: 17 | X36: 0 | Y36: 1 | Z36: 0 | AA36: 0 | AB36: 0 | AC36: 0 | AD36: 0 | AE36: 18 | AF36: 0 | AG36: 0
A37: QNX | B37: RXC | C37: EAST SUSSEX HEALTHCARE NHS TRUST | D37: 1 | E37: * | F37: * | G37: * | H37: * | I37: * | J37: * | K37: * | L37: * | M37: 0 | N37: 0 | O37: NA | P37: NA | Q37: 0 | R37: 0 | S37: 0 | T37: 0 | U37: NA | V37: NA | W37: 0 | X37: 0 | Y37: 0 | Z37: * | AA37: * | AB37: * | AC37: * | AD37: * | AE37: * | AF37: * | AG37: *
A38: QNX | B38: RDR | C38: SUSSEX COMMUNITY NHS FOUNDATION TRUST | D38: 7 | E38: 1 | F38: 0 | G38: * | H38: * | I38: * | J38: * | K38: * | L38: * | M38: 7 | N38: 7 | O38: 1 | P38: 0 | Q38: * | R38: * | S38: * | T38: 7 | U38: 1 | V38: 0 | W38: 7 | X38: 0 | Y38: 0 | Z38: * | AA38: * | AB38: * | AC38: * | AD38: * | AE38: * | AF38: * | AG38: *
A39: QOC | B39: R1D | C39: SHROPSHIRE COMMUNITY HEALTH NHS TRUST | D39: 0 | E39: NA | F39: NA | G39: 0 | H39: 0 | I39: 0 | J39: 0 | K39: 0 | L39: 0 | M39: 0 | N39: 0 | O39: NA | P39: NA | Q39: 0 | R39: 0 | S39: 0 | T39: 0 | U39: NA | V39: NA | W39: 0 | X39: 0 | Y39: 0 | Z39: 0 | AA39: 0 | AB39: 0 | AC39: 0 | AD39: 0 | AE39: 0 | AF39: 0 | AG39: 0
A40: QOP | B40: RMC | C40: BOLTON NHS FOUNDATION TRUST | D40: 3 | E40: * | F40: * | G40: * | H40: * | I40: * | J40: * | K40: * | L40: * | M40: 0 | N40: 0 | O40: NA | P40: NA | Q40: 0 | R40: 0 | S40: 0 | T40: 0 | U40: NA | V40: NA | W40: 0 | X40: 0 | Y40: 0 | Z40: * | AA40: * | AB40: * | AC40: * | AD40: * | AE40: * | AF40: * | AG40: *
A41: QOP | B41: R0A | C41: MANCHESTER UNIVERSITY NHS FOUNDATION TRUST | D41: 2 | E41: * | F41: * | G41: * | H41: * | I41: * | J41: * | K41: * | L41: * | M41: 0 | N41: 51 | O41: NA | P41: NA | Q41: 0 | R41: 0 | S41: 0 | T41: 0 | U41: NA | V41: NA | W41: 0 | X41: 0 | Y41: 0 | Z41: * | AA41: * | AB41: * | AC41: * | AD41: * | AE41: * | AF41: * | AG41: *
A42: QOP | B42: RWJ | C42: STOCKPORT NHS FOUNDATION TRUST | D42: 4 | E42: * | F42: * | G42: * | H42: * | I42: * | J42: * | K42: * | L42: * | M42: 4 | N42: 0 | O42: * | P42: * | Q42: * | R42: * | S42: * | T42: 4 | U42: * | V42: * | W42: * | X42: * | Y42: * | Z42: * | AA42: * | AB42: * | AC42: * | AD42: * | AE42: * | AF42: * | AG42: *
A43: QOP | B43: RMP | C43: TAMESIDE AND GLOSSOP INTEGRATED CARE NHS FOUNDATION TRUST | D43: 0 | E43: NA | F43: NA | G43: 0 | H43: 0 | I43: 0 | J43: 0 | K43: 0 | L43: 0 | M43: 0 | N43: 20 | O43: NA | P43: NA | Q43: 0 | R43: 0 | S43: 0 | T43: 0 | U43: NA | V43: NA | W43: 0 | X43: 0 | Y43: 0 | Z43: 0 | AA43: 0 | AB43: 0 | AC43: 0 | AD43: 0 | AE43: 0 | AF43: 0 | AG43: 0
A44: QOP | B44: RRF | C44: WRIGHTINGTON, WIGAN AND LEIGH NHS FOUNDATION TRUST | D44: 0 | E44: NA | F44: NA | G44: 0 | H44: 0 | I44: 0 | J44: 0 | K44: 0 | L44: 0 | M44: 0 | N44: 0 | O44: NA | P44: NA | Q44: 0 | R44: 0 | S44: 0 | T44: 0 | U44: NA | V44: NA | W44: 0 | X44: 0 | Y44: 0 | Z44: 0 | AA44: 0 | AB44: 0 | AC44: 0 | AD44: 0 | AE44: 0 | AF44: 0 | AG44: 0
A45: QOQ | B45: NNF | C45: CITY HEALTH CARE PARTNERSHIP CIC | D45: 4 | E45: * | F45: * | G45: * | H45: * | I45: * | J45: * | K45: * | L45: * | M45: 4 | N45: 0 | O45: * | P45: * | Q45: * | R45: * | S45: * | T45: 4 | U45: * | V45: * | W45: * | X45: * | Y45: * | Z45: * | AA45: * | AB45: * | AC45: * | AD45: * | AE45: * | AF45: * | AG45: *
A46: QOQ | B46: RJL | C46: NORTHERN LINCOLNSHIRE AND GOOLE NHS FOUNDATION TRUST | D46: 0 | E46: NA | F46: NA | G46: 0 | H46: 0 | I46: 0 | J46: 0 | K46: 0 | L46: 0 | M46: 0 | N46: 0 | O46: NA | P46: NA | Q46: 0 | R46: 0 | S46: 0 | T46: 0 | U46: NA | V46: NA | W46: 0 | X46: 0 | Y46: 0 | Z46: 0 | AA46: 0 | AB46: 0 | AC46: 0 | AD46: 0 | AE46: 0 | AF46: 0 | AG46: 0
A47: QOQ | B47: RCB | C47: YORK AND SCARBOROUGH TEACHING HOSPITALS NHS FOUNDATION TRUST | D47: 0 | E47: NA | F47: NA | G47: 0 | H47: 0 | I47: 0 | J47: 0 | K47: 0 | L47: 0 | M47: 0 | N47: 13 | O47: NA | P47: NA | Q47: 0 | R47: 0 | S47: 0 | T47: 0 | U47: NA | V47: NA | W47: 0 | X47: 0 | Y47: 0 | Z47: 0 | AA47: 0 | AB47: 0 | AC47: 0 | AD47: 0 | AE47: 0 | AF47: 0 | AG47: 0
A48: QOX | B48: AXG | C48: WILTSHIRE HEALTH & CARE | D48: 17 | E48: 0.9411764706 | F48: 0.05882352941 | G48: 12 | H48: 4 | I48: 0 | J48: 1 | K48: 0 | L48: 0 | M48: 17 | N48: 17 | O48: 1 | P48: 0 | Q48: 17 | R48: 0 | S48: 0 | T48: 17 | U48: 1 | V48: 0 | W48: 17 | X48: 0 | Y48: 0 | Z48: 2 | AA48: 9 | AB48: 0 | AC48: 1 | AD48: 5 | AE48: 0 | AF48: 0 | AG48: 0
A49: QPM | B49: RP1 | C49: NORTHAMPTONSHIRE HEALTHCARE NHS FOUNDATION TRUST | D49: 24 | E49: 0.9166666667 | F49: 0.08333333333 | G49: 20 | H49: 2 | I49: 0 | J49: 0 | K49: 2 | L49: 0 | M49: 24 | N49: 24 | O49: 1 | P49: 0 | Q49: 23 | R49: 1 | S49: 0 | T49: 24 | U49: 1 | V49: 0 | W49: 24 | X49: 0 | Y49: 0 | Z49: 0 | AA49: 0 | AB49: 0 | AC49: 0 | AD49: 24 | AE49: 0 | AF49: 0 | AG49: 0
A50: QR1 | B50: RTQ | C50: GLOUCESTERSHIRE HEALTH AND CARE NHS FOUNDATION TRUST | D50: 38 | E50: 0.9473684211 | F50: 0 | G50: 34 | H50: 2 | I50: 1 | J50: 0 | K50: 0 | L50: 1 | M50: 37 | N50: 0 | O50: 0.972972973 | P50: 0.02702702703 | Q50: 33 | R50: 3 | S50: 1 | T50: 36 | U50: 1 | V50: 0 | W50: 36 | X50: 0 | Y50: 0 | Z50: 0 | AA50: 0 | AB50: 0 | AC50: 0 | AD50: 0 | AE50: 0 | AF50: 38 | AG50: 0
A51: QRL | B51: R1C | C51: SOLENT NHS TRUST | D51: 0 | E51: NA | F51: NA | G51: 0 | H51: 0 | I51: 0 | J51: 0 | K51: 0 | L51: 0 | M51: 0 | N51: 0 | O51: NA | P51: NA | Q51: 0 | R51: 0 | S51: 0 | T51: 0 | U51: NA | V51: NA | W51: 0 | X51: 0 | Y51: 0 | Z51: 0 | AA51: 0 | AB51: 0 | AC51: 0 | AD51: 0 | AE51: 0 | AF51: 0 | AG51: 0
A52: QRL | B52: RW1 | C52: SOUTHERN HEALTH NHS FOUNDATION TRUST | D52: 17 | E52: 1 | F52: 0 | G52: 9 | H52: 8 | I52: 0 | J52: 0 | K52: 0 | L52: 0 | M52: 17 | N52: 844 | O52: 0.9411764706 | P52: 0.05882352941 | Q52: 11 | R52: 5 | S52: 1 | T52: 17 | U52: 1 | V52: 0 | W52: 17 | X52: 0 | Y52: 0 | Z52: 0 | AA52: 0 | AB52: 0 | AC52: 0 | AD52: 0 | AE52: 0 | AF52: 17 | AG52: 0
A53: QRV | B53: RYJ | C53: IMPERIAL COLLEGE HEALTHCARE NHS TRUST | D53: 1 | E53: * | F53: * | G53: * | H53: * | I53: * | J53: * | K53: * | L53: * | M53: 1 | N53: 54 | O53: * | P53: * | Q53: * | R53: * | S53: * | T53: 1 | U53: * | V53: * | W53: * | X53: * | Y53: * | Z53: * | AA53: * | AB53: * | AC53: * | AD53: * | AE53: * | AF53: * | AG53: *
A54: QRV | B54: R1K | C54: LONDON NORTH WEST UNIVERSITY HEALTHCARE NHS TRUST | D54: 0 | E54: NA | F54: NA | G54: 0 | H54: 0 | I54: 0 | J54: 0 | K54: 0 | L54: 0 | M54: 0 | N54: 20 | O54: NA | P54: NA | Q54: 0 | R54: 0 | S54: 0 | T54: 0 | U54: NA | V54: NA | W54: 0 | X54: 0 | Y54: 0 | Z54: 0 | AA54: 0 | AB54: 0 | AC54: 0 | AD54: 0 | AE54: 0 | AF54: 0 | AG54: 0
A55: QT1 | B55: NR3 | C55: NOTTINGHAM CITYCARE PARTNERSHIP | D55: 3 | E55: * | F55: * | G55: * | H55: * | I55: * | J55: * | K55: * | L55: * | M55: 3 | N55: 20 | O55: * | P55: * | Q55: * | R55: * | S55: * | T55: 3 | U55: * | V55: * | W55: * | X55: * | Y55: * | Z55: * | AA55: * | AB55: * | AC55: * | AD55: * | AE55: * | AF55: * | AG55: *
A56: QT6 | B56: REF | C56: ROYAL CORNWALL HOSPITALS NHS TRUST | D56: 30 | E56: 1 | F56: 0 | G56: 25 | H56: 5 | I56: 0 | J56: 0 | K56: 0 | L56: 0 | M56: 28 | N56: 0 | O56: 1 | P56: 0 | Q56: 27 | R56: 1 | S56: 0 | T56: 28 | U56: 1 | V56: 0 | W56: 28 | X56: 0 | Y56: 0 | Z56: 0 | AA56: 2 | AB56: 0 | AC56: 0 | AD56: 0 | AE56: 0 | AF56: 28 | AG56: 0
A57: QU9 | B57: RXQ | C57: BUCKINGHAMSHIRE HEALTHCARE NHS TRUST | D57: 0 | E57: NA | F57: NA | G57: 0 | H57: 0 | I57: 0 | J57: 0 | K57: 0 | L57: 0 | M57: 0 | N57: 38 | O57: NA | P57: NA | Q57: 0 | R57: 0 | S57: 0 | T57: 0 | U57: NA | V57: NA | W57: 0 | X57: 0 | Y57: 0 | Z57: 0 | AA57: 0 | AB57: 0 | AC57: 0 | AD57: 0 | AE57: 0 | AF57: 0 | AG57: 0
A58: QU9 | B58: RTH | C58: OXFORD UNIVERSITY HOSPITALS NHS FOUNDATION TRUST | D58: 2 | E58: * | F58: * | G58: * | H58: * | I58: * | J58: * | K58: * | L58: * | M58: 2 | N58: 2 | O58: * | P58: * | Q58: * | R58: * | S58: * | T58: 2 | U58: * | V58: * | W58: * | X58: * | Y58: * | Z58: * | AA58: * | AB58: * | AC58: * | AD58: * | AE58: * | AF58: * | AG58: *
A59: QU9 | B59: RHW | C59: ROYAL BERKSHIRE NHS FOUNDATION TRUST | D59: 1 | E59: * | F59: * | G59: * | H59: * | I59: * | J59: * | K59: * | L59: * | M59: 1 | N59: 0 | O59: * | P59: * | Q59: * | R59: * | S59: * | T59: 1 | U59: * | V59: * | W59: * | X59: * | Y59: * | Z59: * | AA59: * | AB59: * | AC59: * | AD59: * | AE59: * | AF59: * | AG59: *
A60: QUA | B60: RNA | C60: THE DUDLEY GROUP NHS FOUNDATION TRUST | D60: 67 | E60: 0.9850746269 | F60: 0 | G60: 62 | H60: 4 | I60: 1 | J60: 0 | K60: 0 | L60: 0 | M60: 49 | N60: 0 | O60: 1 | P60: 0 | Q60: 49 | R60: 0 | S60: 0 | T60: 49 | U60: 1 | V60: 0 | W60: 49 | X60: 0 | Y60: 0 | Z60: 0 | AA60: 0 | AB60: 0 | AC60: 67 | AD60: 0 | AE60: 0 | AF60: 0 | AG60: 0
A61: QUA | B61: RL4 | C61: THE ROYAL WOLVERHAMPTON NHS TRUST | D61: 0 | E61: NA | F61: NA | G61: 0 | H61: 0 | I61: 0 | J61: 0 | K61: 0 | L61: 0 | M61: 0 | N61: 0 | O61: NA | P61: NA | Q61: 0 | R61: 0 | S61: 0 | T61: 0 | U61: NA | V61: NA | W61: 0 | X61: 0 | Y61: 0 | Z61: 0 | AA61: 0 | AB61: 0 | AC61: 0 | AD61: 0 | AE61: 0 | AF61: 0 | AG61: 0
A62: QUA | B62: RBK | C62: WALSALL HEALTHCARE NHS TRUST | D62: 0 | E62: NA | F62: NA | G62: 0 | H62: 0 | I62: 0 | J62: 0 | K62: 0 | L62: 0 | M62: 0 | N62: 0 | O62: NA | P62: NA | Q62: 0 | R62: 0 | S62: 0 | T62: 0 | U62: NA | V62: NA | W62: 0 | X62: 0 | Y62: 0 | Z62: 0 | AA62: 0 | AB62: 0 | AC62: 0 | AD62: 0 | AE62: 0 | AF62: 0 | AG62: 0
A63: QUE | B63: RGT | C63: CAMBRIDGE UNIVERSITY HOSPITALS NHS FOUNDATION TRUST | D63: 2 | E63: * | F63: * | G63: * | H63: * | I63: * | J63: * | K63: * | L63: * | M63: 2 | N63: 24 | O63: * | P63: * | Q63: * | R63: * | S63: * | T63: 2 | U63: * | V63: * | W63: * | X63: * | Y63: * | Z63: * | AA63: * | AB63: * | AC63: * | AD63: * | AE63: * | AF63: * | AG63: *
A64: QUE | B64: RT1 | C64: CAMBRIDGESHIRE AND PETERBOROUGH NHS FOUNDATION TRUST | D64: 21 | E64: 0.9523809524 | F64: 0 | G64: * | H64: * | I64: * | J64: * | K64: * | L64: * | M64: 21 | N64: 21 | O64: 1 | P64: 0 | Q64: * | R64: * | S64: * | T64: 21 | U64: 1 | V64: 0 | W64: 18 | X64: 3 | Y64: 0 | Z64: * | AA64: * | AB64: * | AC64: * | AD64: * | AE64: * | AF64: * | AG64: *
A65: QVV | B65: RDY | C65: DORSET HEALTHCARE UNIVERSITY NHS FOUNDATION TRUST | D65: 10 | E65: 0.2 | F65: 0.2 | G65: 1 | H65: 1 | I65: 5 | J65: 1 | K65: 1 | L65: 1 | M65: 10 | N65: 0 | O65: 0.6 | P65: 0.4 | Q65: 1 | R65: 5 | S65: 4 | T65: 10 | U65: 0.9 | V65: 0.1 | W65: 7 | X65: 2 | Y65: 1 | Z65: 0 | AA65: 0 | AB65: 0 | AC65: 0 | AD65: 0 | AE65: 0 | AF65: 10 | AG65: 0
A66: QWE | B66: RVR | C66: EPSOM AND ST HELIER UNIVERSITY HOSPITALS NHS TRUST | D66: 11 | E66: 1 | F66: 0 | G66: 11 | H66: 0 | I66: 0 | J66: 0 | K66: 0 | L66: 0 | M66: 10 | N66: 0 | O66: 1 | P66: 0 | Q66: 10 | R66: 0 | S66: 0 | T66: 10 | U66: 1 | V66: 0 | W66: 10 | X66: 0 | Y66: 0 | Z66: 0 | AA66: 0 | AB66: 0 | AC66: 0 | AD66: 11 | AE66: 0 | AF66: 0 | AG66: 0
A67: QWE | B67: RAX | C67: KINGSTON HOSPITAL NHS FOUNDATION TRUST | D67: 0 | E67: NA | F67: NA | G67: 0 | H67: 0 | I67: 0 | J67: 0 | K67: 0 | L67: 0 | M67: 0 | N67: 0 | O67: NA | P67: NA | Q67: 0 | R67: 0 | S67: 0 | T67: 0 | U67: NA | V67: NA | W67: 0 | X67: 0 | Y67: 0 | Z67: 0 | AA67: 0 | AB67: 0 | AC67: 0 | AD67: 0 | AE67: 0 | AF67: 0 | AG67: 0
A68: QWE | B68: RJ7 | C68: ST GEORGE'S UNIVERSITY HOSPITALS NHS FOUNDATION TRUST | D68: 14 | E68: 0.9285714286 | F68: 0.07142857143 | G68: 9 | H68: 4 | I68: 0 | J68: 1 | K68: 0 | L68: 0 | M68: 14 | N68: 0 | O68: 1 | P68: 0 | Q68: 13 | R68: 1 | S68: 0 | T68: 14 | U68: 1 | V68: 0 | W68: 14 | X68: 0 | Y68: 0 | Z68: 0 | AA68: 0 | AB68: 0 | AC68: 0 | AD68: 0 | AE68: 0 | AF68: 14 | AG68: 0
A69: QWO | B69: RCF | C69: AIREDALE NHS FOUNDATION TRUST | D69: 0 | E69: NA | F69: NA | G69: 0 | H69: 0 | I69: 0 | J69: 0 | K69: 0 | L69: 0 | M69: 0 | N69: 0 | O69: NA | P69: NA | Q69: 0 | R69: 0 | S69: 0 | T69: 0 | U69: NA | V69: NA | W69: 0 | X69: 0 | Y69: 0 | Z69: 0 | AA69: 0 | AB69: 0 | AC69: 0 | AD69: 0 | AE69: 0 | AF69: 0 | AG69: 0
A70: QWO | B70: RAE | C70: BRADFORD TEACHING HOSPITALS NHS FOUNDATION TRUST | D70: 0 | E70: NA | F70: NA | G70: 0 | H70: 0 | I70: 0 | J70: 0 | K70: 0 | L70: 0 | M70: 0 | N70: 0 | O70: NA | P70: NA | Q70: 0 | R70: 0 | S70: 0 | T70: 0 | U70: NA | V70: NA | W70: 0 | X70: 0 | Y70: 0 | Z70: 0 | AA70: 0 | AB70: 0 | AC70: 0 | AD70: 0 | AE70: 0 | AF70: 0 | AG70: 0
A71: QWO | B71: RY6 | C71: LEEDS COMMUNITY HEALTHCARE NHS TRUST | D71: 9 | E71: 1 | F71: 0 | G71: 9 | H71: 0 | I71: 0 | J71: 0 | K71: 0 | L71: 0 | M71: 9 | N71: 0 | O71: 1 | P71: 0 | Q71: 9 | R71: 0 | S71: 0 | T71: 9 | U71: 1 | V71: 0 | W71: 9 | X71: 0 | Y71: 0 | Z71: 0 | AA71: 0 | AB71: 0 | AC71: 0 | AD71: 3 | AE71: 0 | AF71: 6 | AG71: 0
A72: QWO | B72: RXF | C72: MID YORKSHIRE HOSPITALS NHS TRUST | D72: 17 | E72: 1 | F72: 0 | G72: 17 | H72: 0 | I72: 0 | J72: 0 | K72: 0 | L72: 0 | M72: 17 | N72: 0 | O72: 1 | P72: 0 | Q72: 17 | R72: 0 | S72: 0 | T72: 17 | U72: 1 | V72: 0 | W72: 17 | X72: 0 | Y72: 0 | Z72: 0 | AA72: 0 | AB72: 0 | AC72: 0 | AD72: 2 | AE72: 0 | AF72: 15 | AG72: 0
A73: QWU | B73: RLT | C73: GEORGE ELIOT HOSPITAL NHS TRUST | D73: 0 | E73: NA | F73: NA | G73: 0 | H73: 0 | I73: 0 | J73: 0 | K73: 0 | L73: 0 | M73: 0 | N73: 0 | O73: NA | P73: NA | Q73: 0 | R73: 0 | S73: 0 | T73: 0 | U73: NA | V73: NA | W73: 0 | X73: 0 | Y73: 0 | Z73: 0 | AA73: 0 | AB73: 0 | AC73: 0 | AD73: 0 | AE73: 0 | AF73: 0 | AG73: 0
A74: QWU | B74: RJC | C74: SOUTH WARWICKSHIRE UNIVERSITY NHS FOUNDATION TRUST | D74: 15 | E74: 1 | F74: 0 | G74: 13 | H74: 2 | I74: 0 | J74: 0 | K74: 0 | L74: 0 | M74: 18 | N74: 12 | O74: 1 | P74: 0 | Q74: 18 | R74: 0 | S74: 0 | T74: 18 | U74: 1 | V74: 0 | W74: 18 | X74: 0 | Y74: 0 | Z74: 0 | AA74: 0 | AB74: 0 | AC74: 15 | AD74: 0 | AE74: 0 | AF74: 0 | AG74: 0
A75: QWU | B75: RKB | C75: UNIVERSITY HOSPITALS COVENTRY AND WARWICKSHIRE NHS TRUST | D75: 0 | E75: NA | F75: NA | G75: 0 | H75: 0 | I75: 0 | J75: 0 | K75: 0 | L75: 0 | M75: 0 | N75: 10 | O75: NA | P75: NA | Q75: 0 | R75: 0 | S75: 0 | T75: 0 | U75: NA | V75: NA | W75: 0 | X75: 0 | Y75: 0 | Z75: 0 | AA75: 0 | AB75: 0 | AC75: 0 | AD75: 0 | AE75: 0 | AF75: 0 | AG75: 0
A76: QXU | B76: NDJ | C76: FIRST COMMUNITY HEALTH AND CARE CIC | D76: 0 | E76: NA | F76: NA | G76: 0 | H76: 0 | I76: 0 | J76: 0 | K76: 0 | L76: 0 | M76: 0 | N76: 10 | O76: NA | P76: NA | Q76: 0 | R76: 0 | S76: 0 | T76: 0 | U76: NA | V76: NA | W76: 0 | X76: 0 | Y76: 0 | Z76: 0 | AA76: 0 | AB76: 0 | AC76: 0 | AD76: 0 | AE76: 0 | AF76: 0 | AG76: 0
A77: QXU | B77: RA2 | C77: ROYAL SURREY COUNTY HOSPITAL NHS FOUNDATION TRUST | D77: 0 | E77: NA | F77: NA | G77: 0 | H77: 0 | I77: 0 | J77: 0 | K77: 0 | L77: 0 | M77: 0 | N77: 0 | O77: NA | P77: NA | Q77: 0 | R77: 0 | S77: 0 | T77: 0 | U77: NA | V77: NA | W77: 0 | X77: 0 | Y77: 0 | Z77: 0 | AA77: 0 | AB77: 0 | AC77: 0 | AD77: 0 | AE77: 0 | AF77: 0 | AG77: 0
A78: QYG | B78: RJN | C78: EAST CHESHIRE NHS TRUST | D78: 6 | E78: 1 | F78: 0 | G78: 5 | H78: 1 | I78: 0 | J78: 0 | K78: 0 | L78: 0 | M78: 0 | N78: 0 | O78: NA | P78: NA | Q78: 0 | R78: 0 | S78: 0 | T78: 0 | U78: NA | V78: NA | W78: 0 | X78: 0 | Y78: 0 | Z78: 6 | AA78: 0 | AB78: 0 | AC78: 0 | AD78: 0 | AE78: 0 | AF78: 0 | AG78: 0
A79: QYG | B79: RW4 | C79: MERSEY CARE NHS FOUNDATION TRUST | D79: 41 | E79: 1 | F79: 0 | G79: 39 | H79: 2 | I79: 0 | J79: 0 | K79: 0 | L79: 0 | M79: 0 | N79: 0 | O79: NA | P79: NA | Q79: 0 | R79: 0 | S79: 0 | T79: 0 | U79: NA | V79: NA | W79: 0 | X79: 0 | Y79: 0 | Z79: 0 | AA79: 0 | AB79: 0 | AC79: 7 | AD79: 0 | AE79: 0 | AF79: 34 | AG79: 0

Sheet BS (hidden)
B1: Sort | C1: Region (LO) Code | D1: Region (LO) name | E1: Trust code | F1: Trust name | G1: Site Code | H1: Site Name | J1: Sort Lists: | K1: Sort range… | L1: Sort range… | M1: Sort range… | N1: Reference Region List: | O1: Code… | P1: Name… | Q1: Linked Region List: | R1: Code… | S1: Name… | T1: Reference Lists: | U1: Code… | V1: Code… | W1: Name… | X1: Code… | Y1: Name… | Z1: Trusts Linked Lists: | AA1: Code… | AB1: Name… | AC1: Sites Linked Lists: | AH1: CSV Headers
A2: Region (LO) | B2: 1 | C2: 1 | D2: 1 | E2: - | F2: - | G2: - | H2: - | K2: ICB Code | L2: ICB Code | M2: ICB Code | O2: QE1 | P2: LANCASHIRE AND SOUTH CUMBRIA ICB | R2: QE1 | S2: LANCASHIRE AND SOUTH CUMBRIA ICB | U2: QE1 | V2: RW5 | W2: LANCASHIRE & SOUTH CUMBRIA NHS FOUNDATION TRUST | AA2: AXG | AB2: AIREDALE NHS FOUNDATION TRUST | AH2: Breakdown | AI2: STP Code | AJ2: Trust Code | AK2: Trust Name | AL2: Q1 - Total Responses | AM2: Q1 - Percentage Positive | AN2: Q1 - Percentage Negative | AO2: Q1 - Very Good | AP2: Q1 - Good | AQ2: Q1 - Neither Good nor Poor | AR2: Q1 - Poor | AS2: Q1 - Very Poor | AT2: Q1 - Don't Know | AU2: Q2 - Total Responses | AV2: Q2 - Total Eligible | AW2: Q2 - Percentage Positive | AX2: Q2 - Percentage Negative | AY2: Q2 - Yes definitely | AZ2: Q2 - Yes to some extent | BA2: Q2 - No | BB2: Q3 - Total Responses | BC2: Q3 - Percentage Positive | BD2: Q3 - Percentage Negative | BE2: Q3 - Yes definitely | BF2: Q3 - Yes to some extent | BG2: Q3 - No
A3: Trusts | B3: 1 | C3: 1 | D3: 1 | E3: 1 | F3: 1 | G3: - | H3: - | K3: ICB Name | L3: Organisation Code | M3: Trust Code | O3: QF7 | P3: SOUTH YORKSHIRE ICB | R3: QF7 | S3: SOUTH YORKSHIRE ICB | U3: QF7 | V3: RXE | W3: ROTHERHAM DONCASTER AND SOUTH HUMBER NHS FOUNDATION TRUST | AA3: NDJ | AB3: BARKING, HAVERING AND REDBRIDGE UNIVERSITY HOSPITALS NHS TRUST
A4: Site | B4: 1 | C4: 1 | D4: 1 | E4: 1 | F4: 1 | G4: 1 | H4: 1 | K4: Total Responses - Q1 | L4: Organisation Name | M4: Trust Name | O4: QGH | P4: HEREFORDSHIRE AND WORCESTERSHIRE ICB | R4: QGH | S4: HEREFORDSHIRE AND WORCESTERSHIRE ICB | U4: QF7 | V4: RHQ | W4: SHEFFIELD TEACHING HOSPITALS NHS FOUNDATION TRUST | AA4: NNF | AB4: BIRMINGHAM COMMUNITY HEALTHCARE NHS FOUNDATION TRUST | AH4: Collection Mode | AI4: STP Code | AJ4: Trust Code | AK4: Trust Name | AL4: Question_Number | AM4: SMS | AN4: Smartphone | AO4: Smartphone After | AP4: Paper | AQ4: Paper After | AR4: Telephone | AS4: Online | AT4: Other
K5: Percentage Positive - Q1 | L5: Total Responses - Q1 | M5: Site Code | O5: QH8 | P5: MID AND SOUTH ESSEX ICB | R5: QH8 | S5: MID AND SOUTH ESSEX ICB | U5: QF7 | V5: RFR | W5: THE ROTHERHAM NHS FOUNDATION TRUST | AA5: NQA | AB5: BOLTON NHS FOUNDATION TRUST
K6: Percentage Negative - Q1 | L6: Percentage Positive - Q1 | M6: Site Name | O6: QHG | P6: BEDFORDSHIRE, LUTON AND MILTON KEYNES ICB | R6: QHG | S6: BEDFORDSHIRE, LUTON AND MILTON KEYNES ICB | U6: QHG | V6: RD8 | W6: MILTON KEYNES UNIVERSITY HOSPITAL NHS FOUNDATION TRUST | AA6: NR3 | AB6: BRADFORD TEACHING HOSPITALS NHS FOUNDATION TRUST
K7: Very Good - Q1 | L7: Percentage Negative - Q1 | M7: Total Responses | O7: QHL | P7: BIRMINGHAM AND SOLIHULL ICB | R7: QHL | S7: BIRMINGHAM AND SOLIHULL ICB | U7: QHL | V7: RYW | W7: BIRMINGHAM COMMUNITY HEALTHCARE NHS FOUNDATION TRUST | AA7: NR5 | AB7: BUCKINGHAMSHIRE HEALTHCARE NHS TRUST
K8: Good - Q1 | L8: Very Good - Q1 | M8: Total Eligible | O8: QHM | P8: NORTH EAST AND NORTH CUMBRIA ICB | R8: QHM | S8: NORTH EAST AND NORTH CUMBRIA ICB | U8: QHM | V8: RXP | W8: COUNTY DURHAM AND DARLINGTON NHS FOUNDATION TRUST | AA8: R0A | AB8: CAMBRIDGE UNIVERSITY HOSPITALS NHS FOUNDATION TRUST
K9: Neither Good nor Poor - Q1 | L9: Good - Q1 | M9: Percentage Positive | O9: QJ2 | P9: DERBY AND DERBYSHIRE ICB | R9: QJ2 | S9: DERBY AND DERBYSHIRE ICB | U9: QHM | V9: RR7 | W9: GATESHEAD HEALTH NHS FOUNDATION TRUST | AA9: R0B | AB9: CAMBRIDGESHIRE AND PETERBOROUGH NHS FOUNDATION TRUST
K10: Poor - Q1 | L10: Neither Good nor Poor - Q1 | M10: Percentage Negative | O10: QJG | P10: SUFFOLK AND NORTH EAST ESSEX ICB | R10: QJG | S10: SUFFOLK AND NORTH EAST ESSEX ICB | U10: QHM | V10: RNN | W10: NORTH CUMBRIA INTEGRATED CARE NHS FOUNDATION TRUST | AA10: R1C | AB10: CITY HEALTH CARE PARTNERSHIP CIC
K11: Very Poor - Q1 | L11: Poor - Q1 | M11: Very Good | O11: QJK | P11: DEVON ICB | R11: QJK | S11: DEVON ICB | U11: QHM | V11: RVW | W11: NORTH TEES AND HARTLEPOOL NHS FOUNDATION TRUST | AA11: R1D | AB11: COUNTY DURHAM AND DARLINGTON NHS FOUNDATION TRUST
K12: Don't Know - Q1 | L12: Very Poor - Q1 | M12: Good | O12: QJM | P12: LINCOLNSHIRE ICB | R12: QJM | S12: LINCOLNSHIRE ICB | U12: QHM | V12: RTF | W12: NORTHUMBRIA HEALTHCARE NHS FOUNDATION TRUST | AA12: R1K | AB12: DERBYSHIRE COMMUNITY HEALTH SERVICES NHS FOUNDATION TRUST
K13: Total Responses - Q2 | L13: Don't Know - Q1 | M13: Neither Good nor Poor | O13: QK1 | P13: LEICESTER, LEICESTERSHIRE AND RUTLAND ICB | R13: QK1 | S13: LEICESTER, LEICESTERSHIRE AND RUTLAND ICB | U13: QHM | V13: RTR | W13: SOUTH TEES HOSPITALS NHS FOUNDATION TRUST | AA13: RA2 | AB13: DORSET HEALTHCARE UNIVERSITY NHS FOUNDATION TRUST
K14: Total Eligible - Q2 | L14: Total Responses - Q2 | M14: Poor | O14: QKK | P14: SOUTH EAST LONDON ICB | R14: QKK | S14: SOUTH EAST LONDON ICB | U14: QHM | V14: R0B | W14: SOUTH TYNESIDE AND SUNDERLAND NHS FOUNDATION TRUST | AA14: RAE | AB14: EAST CHESHIRE NHS TRUST
K15: Percentage Positive - Q2 | L15: Total Eligible - Q2 | M15: Very Poor | O15: QKS | P15: KENT AND MEDWAY ICB | R15: QKS | S15: KENT AND MEDWAY ICB | U15: QHM | V15: RTD | W15: THE NEWCASTLE UPON TYNE HOSPITALS NHS FOUNDATION TRUST | AA15: RAX | AB15: EAST LONDON NHS FOUNDATION TRUST
K16: Percentage Negative - Q2 | L16: Percentage Positive - Q2 | M16: Don't Know | O16: QM7 | P16: HERTFORDSHIRE AND WEST ESSEX ICB | R16: QM7 | S16: HERTFORDSHIRE AND WEST ESSEX ICB | U16: QJ2 | V16: RY8 | W16: DERBYSHIRE COMMUNITY HEALTH SERVICES NHS FOUNDATION TRUST | AA16: RBK | AB16: EAST SUFFOLK AND NORTH ESSEX NHS FOUNDATION TRUST
K17: Yes definitely - Q2 | L17: Percentage Negative - Q2 | O17: QMF | P17: NORTH EAST LONDON ICB | R17: QMF | S17: NORTH EAST LONDON ICB | U17: QJG | V17: RDE | W17: EAST SUFFOLK AND NORTH ESSEX NHS FOUNDATION TRUST | AA17: RCB | AB17: EAST SUSSEX HEALTHCARE NHS TRUST
K18: Yes to some extent - Q2 | L18: Yes definitely - Q2 | O18: QMJ | P18: NORTH CENTRAL LONDON ICB | R18: QMJ | S18: NORTH CENTRAL LONDON ICB | U18: QJG | V18: NQA | W18: PROVIDE | AA18: RCF | AB18: EPSOM AND ST HELIER UNIVERSITY HOSPITALS NHS TRUST
K19: No - Q2 | L19: Yes to some extent - Q2 | O19: QMM | P19: NORFOLK AND WAVENEY ICB | R19: QMM | S19: NORFOLK AND WAVENEY ICB | U19: QJK | V19: NR5 | W19: LIVEWELL SOUTHWEST | AA19: RD8 | AB19: FIRST COMMUNITY HEALTH AND CARE CIC
K20: Total Responses - Q3 | L20: No - Q2 | O20: QNC | P20: STAFFORDSHIRE AND STOKE-ON-TRENT ICB | R20: QNC | S20: STAFFORDSHIRE AND STOKE-ON-TRENT ICB | U20: QJM | V20: RY5 | W20: LINCOLNSHIRE COMMUNITY HEALTH SERVICES NHS TRUST | AA20: RDE | AB20: GATESHEAD HEALTH NHS FOUNDATION TRUST
K21: Percentage Positive - Q3 | L21: Total Responses - Q3 | O21: QNQ | P21: FRIMLEY ICB | R21: QNQ | S21: FRIMLEY ICB | U21: QK1 | V21: RWE | W21: UNIVERSITY HOSPITALS OF LEICESTER NHS TRUST | AA21: RDR | AB21: GEORGE ELIOT HOSPITAL NHS TRUST
K22: Percentage Negative - Q3 | L22: Percentage Positive - Q3 | O22: QNX | P22: SUSSEX ICB | R22: QNX | S22: SUSSEX ICB | U22: QKK | V22: RJ1 | W22: GUY'S AND ST THOMAS' NHS FOUNDATION TRUST | AA22: RDY | AB22: GLOUCESTERSHIRE HEALTH AND CARE NHS FOUNDATION TRUST
K23: Yes definitely - Q3 | L23: Percentage Negative - Q3 | O23: QOC | P23: SHROPSHIRE, TELFORD AND WREKIN ICB | R23: QOC | S23: SHROPSHIRE, TELFORD AND WREKIN ICB | U23: QKK | V23: RJZ | W23: KING'S COLLEGE HOSPITAL NHS FOUNDATION TRUST | AA23: REF | AB23: GUY'S AND ST THOMAS' NHS FOUNDATION TRUST
K24: Yes to some extent - Q3 | L24: Yes definitely - Q3 | O24: QOP | P24: GREATER MANCHESTER ICB | R24: QOP | S24: GREATER MANCHESTER ICB | U24: QM7 | V24: RY4 | W24: HERTFORDSHIRE COMMUNITY NHS TRUST | AA24: RF4 | AB24: HERTFORDSHIRE COMMUNITY NHS TRUST
K25: No - Q3 | L25: Yes to some extent - Q3 | O25: QOQ | P25: HUMBER AND NORTH YORKSHIRE ICB | R25: QOQ | S25: HUMBER AND NORTH YORKSHIRE ICB | U25: QMF | V25: RF4 | W25: BARKING, HAVERING AND REDBRIDGE UNIVERSITY HOSPITALS NHS TRUST | AA25: RFR | AB25: HOMERTON HEALTHCARE NHS FOUNDATION TRUST
L26: No - Q3 | O26: QOX | P26: BATH AND NORTH EAST SOMERSET, SWINDON AND WILTSHIRE ICB | R26: QOX | S26: BATH AND NORTH EAST SOMERSET, SWINDON AND WILTSHIRE ICB | U26: QMF | V26: RWK | W26: EAST LONDON NHS FOUNDATION TRUST | AA26: RGT | AB26: IMPERIAL COLLEGE HEALTHCARE NHS TRUST
L27: SMS - Q1 | O27: QPM | P27: NORTHAMPTONSHIRE ICB | R27: QPM | S27: NORTHAMPTONSHIRE ICB | U27: QMF | V27: RQX | W27: HOMERTON HEALTHCARE NHS FOUNDATION TRUST | AA27: RHQ | AB27: KING'S COLLEGE HOSPITAL NHS FOUNDATION TRUST
L28: Smartphone - Q1 | O28: QR1 | P28: GLOUCESTERSHIRE ICB | R28: QR1 | S28: GLOUCESTERSHIRE ICB | U28: QMF | V28: Y05455 | W28: NELFT OOH | AA28: RHW | AB28: KINGSTON HOSPITAL NHS FOUNDATION TRUST
L29: Smartphone After - Q1 | O29: QRL | P29: HAMPSHIRE AND ISLE OF WIGHT ICB | R29: QRL | S29: HAMPSHIRE AND ISLE OF WIGHT ICB | U29: QMM | V29: RY3 | W29: NORFOLK COMMUNITY HEALTH AND CARE NHS TRUST | AA29: RJ1 | AB29: LANCASHIRE & SOUTH CUMBRIA NHS FOUNDATION TRUST
L30: Paper - Q1 | O30: QRV | P30: NORTH WEST LONDON ICB | R30: QRV | S30: NORTH WEST LONDON ICB | U30: QNC | V30: RRE | W30: MIDLANDS PARTNERSHIP NHS FOUNDATION TRUST | AA30: RJ7 | AB30: LEEDS COMMUNITY HEALTHCARE NHS TRUST
L31: Paper After - Q1 | O31: QSL | P31: SOMERSET ICB | R31: QSL | S31: SOMERSET ICB | U31: QNX | V31: RXC | W31: EAST SUSSEX HEALTHCARE NHS TRUST | AA31: RJC | AB31: LINCOLNSHIRE COMMUNITY HEALTH SERVICES NHS TRUST
L32: Telephone - Q1 | O32: QT1 | P32: NOTTINGHAM AND NOTTINGHAMSHIRE ICB | R32: QT1 | S32: NOTTINGHAM AND NOTTINGHAMSHIRE ICB | U32: QNX | V32: RDR | W32: SUSSEX COMMUNITY NHS FOUNDATION TRUST | AA32: RJL | AB32: LIVEWELL SOUTHWEST
L33: Online - Q1 | O33: QT6 | P33: CORNWALL AND THE ISLES OF SCILLY ICB | R33: QT6 | S33: CORNWALL AND THE ISLES OF SCILLY ICB | U33: QOC | V33: R1D | W33: SHROPSHIRE COMMUNITY HEALTH NHS TRUST | AA33: RJN | AB33: LONDON NORTH WEST UNIVERSITY HEALTHCARE NHS TRUST
L34: Other - Q1 | O34: QU9 | P34: BUCKINGHAMSHIRE, OXFORDSHIRE AND BERKSHIRE WEST ICB | R34: QU9 | S34: BUCKINGHAMSHIRE, OXFORDSHIRE AND BERKSHIRE WEST ICB | U34: QOP | V34: RMC | W34: BOLTON NHS FOUNDATION TRUST | AA34: RJZ | AB34: MANCHESTER UNIVERSITY NHS FOUNDATION TRUST
L35: SMS - Q2 | O35: QUA | P35: BLACK COUNTRY ICB | R35: QUA | S35: BLACK COUNTRY ICB | U35: QOP | V35: R0A | W35: MANCHESTER UNIVERSITY NHS FOUNDATION TRUST | AA35: RKB | AB35: MERSEY CARE NHS FOUNDATION TRUST
L36: Smartphone - Q2 | O36: QUE | P36: CAMBRIDGESHIRE AND PETERBOROUGH ICB | R36: QUE | S36: CAMBRIDGESHIRE AND PETERBOROUGH ICB | U36: QOP | V36: RWJ | W36: STOCKPORT NHS FOUNDATION TRUST | AA36: RL4 | AB36: MID YORKSHIRE HOSPITALS NHS TRUST
L37: Smartphone After - Q2 | O37: QUY | P37: BRISTOL, NORTH SOMERSET AND SOUTH GLOUCESTERSHIRE ICB | R37: QUY | S37: BRISTOL, NORTH SOMERSET AND SOUTH GLOUCESTERSHIRE ICB | U37: QOP | V37: RMP | W37: TAMESIDE AND GLOSSOP INTEGRATED CARE NHS FOUNDATION TRUST | AA37: RLT | AB37: MIDLANDS PARTNERSHIP NHS FOUNDATION TRUST
L38: Paper - Q2 | O38: QVV | P38: DORSET ICB | R38: QVV | S38: DORSET ICB | U38: QOP | V38: RRF | W38: WRIGHTINGTON, WIGAN AND LEIGH NHS FOUNDATION TRUST | AA38: RMC | AB38: MILTON KEYNES UNIVERSITY HOSPITAL NHS FOUNDATION TRUST
L39: Paper After - Q2 | O39: QWE | P39: SOUTH WEST LONDON ICB | R39: QWE | S39: SOUTH WEST LONDON ICB | U39: QOQ | V39: NNF | W39: CITY HEALTH CARE PARTNERSHIP CIC | AA39: RMP | AB39: NELFT OOH
L40: Telephone - Q2 | O40: QWO | P40: WEST YORKSHIRE ICB | R40: QWO | S40: WEST YORKSHIRE ICB | U40: QOQ | V40: RJL | W40: NORTHERN LINCOLNSHIRE AND GOOLE NHS FOUNDATION TRUST | AA40: RNA | AB40: NORFOLK COMMUNITY HEALTH AND CARE NHS TRUST
L41: Online - Q2 | O41: QWU | P41: COVENTRY AND WARWICKSHIRE ICB | R41: QWU | S41: COVENTRY AND WARWICKSHIRE ICB | U41: QOQ | V41: RCB | W41: YORK AND SCARBOROUGH TEACHING HOSPITALS NHS FOUNDATION TRUST | AA41: RNN | AB41: NORTH CUMBRIA INTEGRATED CARE NHS FOUNDATION TRUST
L42: Other - Q2 | O42: QXU | P42: SURREY HEARTLANDS ICB | R42: QXU | S42: SURREY HEARTLANDS ICB | U42: QOX | V42: AXG | W42: WILTSHIRE HEALTH & CARE | AA42: RP1 | AB42: NORTH TEES AND HARTLEPOOL NHS FOUNDATION TRUST
L43: SMS - Q3 | O43: QYG | P43: CHESHIRE AND MERSEYSIDE ICB | R43: QYG | S43: CHESHIRE AND MERSEYSIDE ICB | U43: QPM | V43: RP1 | W43: NORTHAMPTONSHIRE HEALTHCARE NHS FOUNDATION TRUST | AA43: RQX | AB43: NORTHAMPTONSHIRE HEALTHCARE NHS FOUNDATION TRUST
L44: Smartphone - Q3 | U44: QR1 | V44: RTQ | W44: GLOUCESTERSHIRE HEALTH AND CARE NHS FOUNDATION TRUST | AA44: RR7 | AB44: NORTHERN LINCOLNSHIRE AND GOOLE NHS FOUNDATION TRUST
L45: Smartphone After - Q3 | U45: QRL | V45: R1C | W45: SOLENT NHS TRUST | AA45: RRE | AB45: NORTHUMBRIA HEALTHCARE NHS FOUNDATION TRUST
L46: Paper - Q3 | U46: QRL | V46: RW1 | W46: SOUTHERN HEALTH NHS FOUNDATION TRUST | AA46: RRF | AB46: NOTTINGHAM CITYCARE PARTNERSHIP
L47: Paper After - Q3 | U47: QRV | V47: RYJ | W47: IMPERIAL COLLEGE HEALTHCARE NHS TRUST | AA47: RT1 | AB47: OXFORD UNIVERSITY HOSPITALS NHS FOUNDATION TRUST
L48: Telephone - Q3 | U48: QRV | V48: R1K | W48: LONDON NORTH WEST UNIVERSITY HEALTHCARE NHS TRUST | AA48: RTD | AB48: PROVIDE
L49: Online - Q3 | U49: QT1 | V49: NR3 | W49: NOTTINGHAM CITYCARE PARTNERSHIP | AA49: RTF | AB49: ROTHERHAM DONCASTER AND SOUTH HUMBER NHS FOUNDATION TRUST
L50: Other - Q3 | U50: QT6 | V50: REF | W50: ROYAL CORNWALL HOSPITALS NHS TRUST | AA50: RTH | AB50: ROYAL BERKSHIRE NHS FOUNDATION TRUST
U51: QU9 | V51: RXQ | W51: BUCKINGHAMSHIRE HEALTHCARE NHS TRUST | AA51: RTQ | AB51: ROYAL CORNWALL HOSPITALS NHS TRUST
U52: QU9 | V52: RTH | W52: OXFORD UNIVERSITY HOSPITALS NHS FOUNDATION TRUST | AA52: RTR | AB52: ROYAL SURREY COUNTY HOSPITAL NHS FOUNDATION TRUST
U53: QU9 | V53: RHW | W53: ROYAL BERKSHIRE NHS FOUNDATION TRUST | AA53: RVR | AB53: SHEFFIELD TEACHING HOSPITALS NHS FOUNDATION TRUST
U54: QUA | V54: RNA | W54: THE DUDLEY GROUP NHS FOUNDATION TRUST | AA54: RVW | AB54: SHROPSHIRE COMMUNITY HEALTH NHS TRUST
U55: QUA | V55: RL4 | W55: THE ROYAL WOLVERHAMPTON NHS TRUST | AA55: RW1 | AB55: SOLENT NHS TRUST
U56: QUA | V56: RBK | W56: WALSALL HEALTHCARE NHS TRUST | AA56: RW4 | AB56: SOUTH TEES HOSPITALS NHS FOUNDATION TRUST
U57: QUE | V57: RGT | W57: CAMBRIDGE UNIVERSITY HOSPITALS NHS FOUNDATION TRUST | AA57: RW5 | AB57: SOUTH TYNESIDE AND SUNDERLAND NHS FOUNDATION TRUST
U58: QUE | V58: RT1 | W58: CAMBRIDGESHIRE AND PETERBOROUGH NHS FOUNDATION TRUST | AA58: RWE | AB58: SOUTH WARWICKSHIRE UNIVERSITY NHS FOUNDATION TRUST
U59: QVV | V59: RDY | W59: DORSET HEALTHCARE UNIVERSITY NHS FOUNDATION TRUST | AA59: RWJ | AB59: SOUTHERN HEALTH NHS FOUNDATION TRUST
U60: QWE | V60: RVR | W60: EPSOM AND ST HELIER UNIVERSITY HOSPITALS NHS TRUST | AA60: RWK | AB60: ST GEORGE'S UNIVERSITY HOSPITALS NHS FOUNDATION TRUST
U61: QWE | V61: RAX | W61: KINGSTON HOSPITAL NHS FOUNDATION TRUST | AA61: RXC | AB61: STOCKPORT NHS FOUNDATION TRUST
U62: QWE | V62: RJ7 | W62: ST GEORGE'S UNIVERSITY HOSPITALS NHS FOUNDATION TRUST | AA62: RXE | AB62: SUSSEX COMMUNITY NHS FOUNDATION TRUST
U63: QWO | V63: RCF | W63: AIREDALE NHS FOUNDATION TRUST | AA63: RXF | AB63: TAMESIDE AND GLOSSOP INTEGRATED CARE NHS FOUNDATION TRUST
U64: QWO | V64: RAE | W64: BRADFORD TEACHING HOSPITALS NHS FOUNDATION TRUST | AA64: RXP | AB64: THE DUDLEY GROUP NHS FOUNDATION TRUST
U65: QWO | V65: RY6 | W65: LEEDS COMMUNITY HEALTHCARE NHS TRUST | AA65: RXQ | AB65: THE NEWCASTLE UPON TYNE HOSPITALS NHS FOUNDATION TRUST
U66: QWO | V66: RXF | W66: MID YORKSHIRE HOSPITALS NHS TRUST | AA66: RY3 | AB66: THE ROTHERHAM NHS FOUNDATION TRUST
U67: QWU | V67: RLT | W67: GEORGE ELIOT HOSPITAL NHS TRUST | AA67: RY4 | AB67: THE ROYAL WOLVERHAMPTON NHS TRUST
U68: QWU | V68: RJC | W68: SOUTH WARWICKSHIRE UNIVERSITY NHS FOUNDATION TRUST | AA68: RY5 | AB68: UNIVERSITY HOSPITALS COVENTRY AND WARWICKSHIRE NHS TRUST
U69: QWU | V69: RKB | W69: UNIVERSITY HOSPITALS COVENTRY AND WARWICKSHIRE NHS TRUST | AA69: RY6 | AB69: UNIVERSITY HOSPITALS OF LEICESTER NHS TRUST
U70: QXU | V70: NDJ | W70: FIRST COMMUNITY HEALTH AND CARE CIC | AA70: RY8 | AB70: WALSALL HEALTHCARE NHS TRUST
U71: QXU | V71: RA2 | W71: ROYAL SURREY COUNTY HOSPITAL NHS FOUNDATION TRUST | AA71: RYJ | AB71: WILTSHIRE HEALTH & CARE
U72: QYG | V72: RJN | W72: EAST CHESHIRE NHS TRUST | AA72: RYW | AB72: WRIGHTINGTON, WIGAN AND LEIGH NHS FOUNDATION TRUST
U73: QYG | V73: RW4 | W73: MERSEY CARE NHS FOUNDATION TRUST | AA73: Y05455 | AB73: YORK AND SCARBOROUGH TEACHING HOSPITALS NHS FOUNDATION TRUST
